Cogmind - Beta 14 @@@ ROGUE MODE // 2024.08.17 @ 07:12:38 Player: Tim Result: Destroyed by YI-UF0 with YI-UF0's Doublenader Performance ------------- Evolutions (0) 0 Regions Visited (4) 800 Robots Destroyed (15) 75 Value Destroyed (459) 459 Prototype IDs (25) 500 Alien Tech Used (0) 0 Bonus (360) 360 TOTAL SCORE: 2194 Bonus ------- Follower Combat Kills 60 Aligned with FarCom 300 Cogmind --------- Core Integrity 0/250 Matter 260/300 Energy 115/125 System Corruption 4% Temperature Cool (4) Movement Walking (125) Location -9/Mines Parts ------- > --- POWER (1) -------- Light Ion Engine > --- PROPULSION (2) --- Aluminum Leg Improved Titanium Leg > --- UTILITY (2) ------ Medium Storage Unit Improved Medium Armor Plating > --- WEAPON (2) ------- Grenade Launcher Grenade Launcher > --- INVENTORY (10) --- Ion Engine Large Storage Unit Large Storage Unit Signal Interpreter Seismic Detector ECM Suite Light Assault Rifle Datajack Field Lobotomy Kit (5) Mining Laser Peak State ------------ > --- POWER ------------ Light Ion Engine > --- PROPULSION ------- Aluminum Leg Aluminum Leg > --- UTILITY ---------- Medium Storage Unit Structural Scanner > --- WEAPON ----------- Assault Rifle Field Lobotomy Kit > --- INVENTORY -------- Ion Engine Large Storage Unit Large Storage Unit Signal Interpreter ECM Suite Assault Rifle Light Assault Rifle Light Assault Rifle Grenade Launcher Datajack [Rating: 17] Favorites ----------- Power Light Ion Engine Engine Light Ion Engine Power Core Light Nuclear Core Propulsion Aluminum Leg Leg Aluminum Leg Wheel Compact Wheel Utility Structural Scanner Device Structural Scanner Storage Medium Storage Unit Protection Improved Medium Armor Plating Weapon Assault Rifle Ballistic Gun Assault Rifle Launcher Grenade Launcher Special Weapon Mining Laser Special Melee Weapon Datajack Build | -11 -10 -10 -10 -9 ------- Run | Yrd Mat Min Exi Min Slots Evolved . | . . . . . Power . | . . . . . Propulsion . | . . . . . Utility . | . . . . . Weapon . | . . . . . Parts Attached 42 | 7 17 7 1 10 Power 4 | 2 2 . . . Engine 3 | 2 1 . . . Core 1 | . 1 . . . Reactor . | . . . . . Propulsion 7 | 2 2 2 . 1 Treads . | . . . . . Leg 5 | . 2 2 . 1 Wheel 2 | 2 . . . . Hover . | . . . . . Flight . | . . . . . Utility 6 | 1 3 . . 2 Device 2 | . 1 . . 1 Storage 3 | 1 2 . . . Processor . | . . . . . Hackware . | . . . . . Protection 1 | . . . . 1 Artifact . | . . . . . Weapon 25 | 2 10 5 1 7 Energy Gun . | . . . . . Energy Cannon . | . . . . . Ballistic Gun 15 | 2 9 2 . 2 Ballistic Cannon . | . . . . . Launcher 4 | . . . . 4 Special Weapon 4 | . 1 2 1 . Impact Weapon . | . . . . . Slashing Weapon . | . . . . . Piercing Weapon . | . . . . . Special Melee Weapon 2 | . . 1 . 1 Unidentified Prototypes . | . . . . . Parts Lost 6 | . 2 1 . 3 Power 1 | . 1 . . . Propulsion 1 | . 1 . . . Utility 1 | . . . . 1 Weapon 3 | . . 1 . 2 Highest Loss Streak 3 | . 1 1 . 3 To Critical Strikes . | . . . . . Average Slot Usage (%) 95 | . 94 97 90 99 Engine 12 | . 8 14 14 14 Leg 24 | . 11 28 28 28 Wheel 3 | . 16 . . . Device 13 | . 12 14 14 11 Storage 14 | . 14 14 14 14 Ballistic Gun 19 | . 27 19 14 17 Launcher 2 | . . . . 8 Special Weapon 3 | . . 5 5 . Peak Build Rating 17 | 6 10 8 17 14 Average Rating 8 | 3 7 7 10 8 On Entrance 7 | . 6 8 7 17 Naked Turns . | . . . . . Heaviest Build 28 | 12 28 18 24 26 Greatest Support 32 | 32 32 20 20 30 Greatest Overweight (x) 5 | 2 1 5 1 1 Average Overweight (x) . | . . 1 . . Largest Inventory Capacity 15 | 8 15 10 10 10 Average Capacity 10 | 6 11 10 10 10 Most Carried 11 | 5 11 10 10 10 Average Carried 9 | 3 9 9 10 9 Final Capacity 10 | 8 10 10 10 10 Final Carried 10 | 3 10 10 10 10 Class Distribution -------------------- 100% | Mutant Dominant Class ---------------- Mutant | -10/Materials Mutant | -10/Mines Mutant | -10/Exiles Mutant | -9/Mines Resources | -11 -10 -10 -10 -9 ----------- Run | Yrd Mat Min Exi Min Matter Collected 931 | 197 315 243 . 176 Remotely . | . . . . . Salvage Created 562 | . 353 144 . 65 Parts 29 | . 15 13 . 1 Haulers Intercepted . | . . . . . Recyclers Shooed . | . . . . . Parts Field Recycled . | . . . . . Retrieved Matter . | . . . . . Parts Self-Destructed . | . . . . . Prevented . | . . . . . Kills | -11 -10 -10 -10 -9 ------- Run | Yrd Mat Min Exi Min Combat Hostiles Destroyed 17 | . 9 5 . 3 Guns 14 | . 9 5 . . AOE 3 | . . . . 3 Classes Destroyed 4 | . 2 . . 2 Recycler 1 | . . . . 1 Swarmer 3 | . 1 2 . . Grunt 11 | . 8 3 . . Assembled 3 | . . . . 3 Best Kill Streak 3 | . 2 3 . 3 Combat Bots Only 3 | . 2 3 . 2 Max Kills in Single Turn 2 | . 1 1 . 2 Gunslinging . | . . . . . Exploded 1 | . . . . 1 Melee . | . . . . . Uniques/NPCs Destroyed . | . . . . . Combat | -11 -10 -10 -10 -9 -------- Run | Yrd Mat Min Exi Min Hostile Shots Fired 110 | . 60 23 . 27 Missed 34 | . 16 8 . 10 Damage Taken 1203 | 2 514 227 . 460 Core 267 | . 127 43 . 97 Absorbed by Shields . | . . . . . Core Remaining (%) 100 | 100 . . . . Volleys Fired 66 | . 45 15 . 6 Largest 2 | . 2 2 . 2 Hottest 100 | . 100 100 . 60 Shots Fired 127 | . 89 26 . 12 Gun 113 | . 88 23 . 2 Cannon . | . . . . . Launcher 10 | . . . . 10 Special 4 | . 1 3 . . Kinetic 113 | . 88 23 . 2 Thermal 4 | . 1 3 . . Explosive 10 | . . . . 10 Electromagnetic . | . . . . . Robot Hit Streak 9 | . 9 7 . 2 Robot Miss Streak 3 | . 3 1 . . Penetration Max . | . . . . . Secondary Targets . | . . . . . Shots Hit Robots 75 | . 56 17 . 2 Core Hits 36 | . 20 8 . 8 Critical Kills 1 | . . 1 . . Critical Parts Destroyed . | . . . . . Critical Strikes 1 | . . 1 . . Destroy 1 | . . 1 . . Melee Attacks 3 | . . 3 . . Impact . | . . . . . Slashing . | . . . . . Piercing . | . . . . . Sneak Attacks 1 | . . 1 . . Combat Hostiles . | . . . . . Follow-up Attacks . | . . . . . Damage Inflicted 1056 | 5 613 169 . 269 Guns 805 | . 613 169 . 23 Cannons . | . . . . . Explosions 246 | . . . . 246 Melee . | . . . . . Ramming 5 | 5 . . . . Kinetic 805 | . 613 169 . 23 Thermal . | . . . . . Explosive 246 | . . . . 246 Electromagnetic . | . . . . . Impact . | . . . . . Slashing . | . . . . . Piercing . | . . . . . Highest Corruption 4 | . . . . 4 Average Corruption 3 | . . . . 3 Corruption Purged . | . . . . . Corruption Blocked . | . . . . . Effects 9 | . . . . 9 Message Errors 2 | . . . . 2 Matter Fused 1 | . . . . 1 Heat Flow Errors 2 | . . . . 2 Energy Discharges 1 | . . . . 1 Data Loss (minor) 2 | . . . . 2 Data Loss (major) 1 | . . . . 1 Overload Shots . | . . . . . Overflow Damage . | . . . . . Projectiles . | . . . . . Explosions . | . . . . . Melee . | . . . . . Knockbacks . | . . . . . Impact . | . . . . . Kinetic . | . . . . . Secondary . | . . . . . Self-Inflicted Damage 12 | 2 . . . 10 Shots 1 | . . . . 1 Rammed 1 | 1 . . . . Targets Rammed 1 | 1 . . . . Kicked . | . . . . . Crushed . | . . . . . Highest Temperature 222 | . 20 40 . 222 Average Temperature 33 | . 6 14 . 88 Received Heat Transfer 381 | . 285 96 . . Siege Activations . | . . . . . Robots Corrupted . | . . . . . Combat Hostiles . | . . . . . Parts Fried . | . . . . . Impact Corruptions . | . . . . . Robots Melted . | . . . . . Combat Hostiles . | . . . . . Parts Melted . | . . . . . Heat Transferred . | . . . . . Parts Sabotaged . | . . . . . Parts Stolen . | . . . . . Parts Stripped . | . . . . . Power Chain Reactions . | . . . . . Alert | -11 -10 -10 -10 -9 ------- Run | Yrd Mat Min Exi Min Peak Influence 168 | . 168 79 . 40 Initial 5 | . . 5 . . Average 20 | . 39 18 . 8 Maximum Alert Level . | . . . . . Low Security (%) 100 | 100 100 100 . 100 Level 1 . | . . . . . Level 2 . | . . . . . Level 3 . | . . . . . Level 4 . | . . . . . Level 5 . | . . . . . High Security . | . . . . . Max Security . | . . . . . Squads Dispatched 2 | . 2 . . . Investigation 1 | . 1 . . . Extermination . | . . . . . Reinforcement 1 | . 1 . . . Assault . | . . . . . Garrison . | . . . . . Intercept . | . . . . . Searches Triggered . | . . . . . Construction Impeded . | . . . . . Haulers Reinforced . | . . . . . Active Scanning Responses . | . . . . . Cargo Convoy Interrupts . | . . . . . Stealth | -11 -10 -10 -10 -9 --------- Run | Yrd Mat Min Exi Min Distress Signals 2 | . 2 . . . Communications Jammed . | . . . . . Distress Signals . | . . . . . Times Spotted 32 | . 18 8 . 6 Peak Tracking Total 3 | . 3 3 . 3 Tactical Retreats 3 | . 1 1 . 1 Traps | -11 -10 -10 -10 -9 ------- Run | Yrd Mat Min Exi Min Traps Triggered . | . . . . . Indirectly . | . . . . . Trap Hack Attempts . | . . . . . Triggered . | . . . . . Disarmed . | . . . . . Reprogrammed . | . . . . . Reused . | . . . . . Traps Extracted . | . . . . . Installed . | . . . . . Triggered . | . . . . . Machines | -11 -10 -10 -10 -9 ---------- Run | Yrd Mat Min Exi Min Machines Disabled 1 | . . 1 . . Max in Single Turn . | . . . . . Machines Repaired . | . . . . . Machines Dismantled . | . . . . . Machines Sabotaged . | . . . . . Overloaded Fab Kills . | . . . . . Hacking | -11 -10 -10 -10 -9 --------- Run | Yrd Mat Min Exi Min Machines Accessed 10 | . 7 1 1 1 Terminals 7 | . 7 . . . Fabricators . | . . . . . Repair Stations . | . . . . . Recycling Units . | . . . . . Scanalyzers . | . . . . . Garrison Access . | . . . . . Total Hacks 28 | . 25 1 1 1 Successful 12 | . 9 1 1 1 Failed 16 | . 16 . . . Catastrophic 3 | . 3 . . . Database Lockouts . | . . . . . Manual 6 | . 4 1 1 . Terminals 25 | . 25 . . . Fabricators . | . . . . . Repair Stations . | . . . . . Recycling Units . | . . . . . Scanalyzers . | . . . . . Garrison Access . | . . . . . Terminal Hacks 12 | . 9 1 1 1 Prototype ID Bank 1 | . 1 . . . Open Door 2 | . . 1 . 1 Branch Access Points 1 | . 1 . . . Scanalyzer Index 1 | . 1 . . . Unreport Threat 1 | . 1 . . . Zone Layout 5 | . 5 . . . Derelict Proto ID Bank 1 | . . . 1 . Fabricator Hacks . | . . . . . Repair Station Hacks . | . . . . . Recycling Unit Hacks . | . . . . . Scanalyzer . | . . . . . Garrison Access Hacks . | . . . . . Unauthorized Hacks . | . . . . . Terminals . | . . . . . Fabricators . | . . . . . Repair Stations . | . . . . . Recycling Units . | . . . . . Scanalyzers . | . . . . . Garrison Access . | . . . . . Data Cores Recovered . | . . . . . Used . | . . . . . Hacking Detections 7 | . 7 . . . Full Trace Events 4 | . 4 . . . Feedback Events . | . . . . . Feedback Blocked . | . . . . . Robot Schematics Acquired . | . . . . . Robots Built . | . . . . . Authchips . | . . . . . Time . | . . . . . Total Robot Build Rating . | . . . . . Part Schematics Acquired . | . . . . . Parts Built . | . . . . . Authchips . | . . . . . Time . | . . . . . Total Part Build Rating . | . . . . . Parts Repaired . | . . . . . Time . | . . . . . Parts Recycled . | . . . . . Recycled Matter . | . . . . . Retrieved Matter . | . . . . . Retrieved Components . | . . . . . Parts Scanalyzed . | . . . . . Part Schematics Acquired . | . . . . . Parts Damaged . | . . . . . Bothacking | -11 -10 -10 -10 -9 ------------ Run | Yrd Mat Min Exi Min Used RIF Installer . | . . . . . Robots Hacked 1 | . . 1 . . Non-combat 1 | . . 1 . . Combat . | . . . . . Robot Hacks Applied 1 | . . 1 . . parse_system 1 | . . 1 . . Relay Couplers Released . | . . . . . Fabnet Peak Effective % . | . . . . . Robots Rewired . | . . . . . Allies Hacked . | . . . . . Hacks Repelled . | . . . . . Allies | -11 -10 -10 -10 -9 -------- Run | Yrd Mat Min Exi Min Total Allies 1 | . . 1 . . Largest Group 1 | . . 1 . . Highest-Rated Group 31 | . . 31 . . Highest-Rated Ally 31 | . . 31 . . Total Orders . | . . . . . Ally Attacks 9 | . . 9 . . Total Damage 311 | . . 311 . . Kills 2 | . . 2 . . Allies Corrupted . | . . . . . Allies Melted . | . . . . . Intel | -11 -10 -10 -10 -9 ------- Run | Yrd Mat Min Exi Min Robot Analysis Total . | . . . . . Derelict Logs Recovered 4 | . . 3 . 1 Drone Launches . | . . . . . Drone Recoveries . | . . . . . Exploration | -11 -10 -10 -10 -9 ------------- Run | Yrd Mat Min Exi Min Turns Passed 4048 | 61 884 1444 747 912 Spaces Moved 2604 | 45 621 817 510 611 Core 202 | 17 . 185 . . Treads . | . . . . . Legs 2022 | . 269 632 510 611 Wheels 380 | 28 352 . . . Hover . | . . . . . Flight . | . . . . . Fastest Speed 50 | 50 100 120 120 120 Average Speed 136 | 97 109 160 138 132 Slowest Speed 300 | 150 190 300 190 190 Overloaded Moves . | . . . . . Propulsion Burnouts . | . . . . . Robots Hopped . | . . . . . Cave-ins Triggered . | . . . . . Exploration Rate (%) 75 | 3 95 99 93 89 Regions Visited 4 Branch Regions 3 Pre-discovered Areas 2 | . . 1 . 1 Known Exits Taken 1 | . 1 . . . Unknown Exits Taken 3 | 1 . 1 1 . Scrap Searched 3 | . . 1 . 2 Spaces Dug 4 | . 1 3 . . Terrain Destroyed 65 | . 1 3 . 61 Melee . | . . . . . Projectile 4 | . 1 3 . . AOE 61 | . . . . 61 Terrain Rammed . | . . . . . Walls Destroyed . | . . . . . Machines Disabled . | . . . . . Actions | -11 -10 -10 -10 -9 --------- Run | Yrd Mat Min Exi Min Total 2964 | 60 738 913 552 701 Wait 214 | . 40 64 42 68 Move 2601 | 45 620 816 509 611 Hop . | . . . . . Pick Up 26 | 7 12 3 . 4 Fast Attach 6 | 3 2 . 1 . Attach 10 | 4 3 . . 3 Detach . | . . . . . Swap 26 | . 12 7 . 7 Drop 12 | 1 4 5 . 2 Fire 66 | . 45 15 . 6 Melee 3 | . . 3 . . Ram . | . . . . . Kick . | . . . . . Crush . | . . . . . Escape Stasis . | . . . . . Rewire . | . . . . . Trap . | . . . . . Miscellaneous . | . . . . . Route ------- -11/Scrapyard -10/Materials (discovered 4 exits: *Mat x3 / *Min) -10/Mines (discovered 4 exits: *Mat x2 / *Exi / [*Sub]) -10/Exiles (discovered 2 exits: *Min x2) -9/Mines (discovered 1 exit: [*Mat]) History --------- Turn | Location | Event 16 | -11/Scrapyard | Discovered new exit (range 15) 62 | -11/Scrapyard | Entered Materials 72 | -10/Materials | Identified exit to Mines 219 | -10/Materials | Discovered new exit (range 15) 320 | -10/Materials | Build established: Mutant 371 | -10/Materials | Discovered new exit (range 13) 684 | -10/Materials | Core integrity fell below 50% 797 | -10/Materials | Discovered new exit (range 4) 946 | -10/Materials | Entered Mines 947 | -10/Mines | Met a Derelict bent on vengeance 967 | -10/Mines | Learned location of Zion (-6) 1106 | -10/Mines | Identified exit to Materials 1226 | -10/Mines | Discovered new exit (range 12) 1317 | -10/Mines | Learned Materials security intel 1323 | -10/Mines | Discovered exit to Materials (range 5) 1345 | -10/Mines | Found the Drone Emporium 1626 | -10/Mines | Escorted by a lone wolf Derelict 2033 | -10/Mines | Found a hidden stash of uninstalled traps 2280 | -10/Mines | Deemed a non-threat by the Exiles lab entrance 2280 | -10/Mines | Discovered new exit (range 6) 2390 | -10/Mines | Entered Exiles 2390 | -10/Exiles | Accompanied by 1 ally 2407 | -10/Exiles | Discovered new exit (range 15) 2438 | -10/Exiles | Met 8R-AWN 2459 | -10/Exiles | Met EX-HEX 2537 | -10/Exiles | Met EX-DEC 2564 | -10/Exiles | Visited The Gauntlet 2790 | -10/Exiles | Met EX-BIN 2807 | -10/Exiles | Aligned with FarCom system 2808 | -10/Exiles | Given EX-Vault access code 2838 | -10/Exiles | Opened EX-Vault 2844 | -10/Exiles | Found Field Lobotomy Kit 2883 | -10/Exiles | Warned to stay clear of 0b10 Research branches 3054 | -10/Exiles | Discovered new exit (range 14) 3137 | -10/Exiles | Left Exiles lab with Field Lobotomy Kit 3137 | -10/Exiles | Entered Mines 3365 | -9/Mines | YI-UF0 nonchalantly dropped a Grenade Launcher on the ground 3428 | -9/Mines | Assembled infested the area 3692 | -9/Mines | Core integrity fell below 20% 3707 | -9/Mines | Lost 3 parts (1u2w) 3797 | -9/Mines | Discovered new exit (range 8) 4049 | -9/Mines | Destroyed by YI-UF0 with YI-UF0's Doublenader Last Messages --------------- >>Open Door Sealed Doors opened. 03882_ K-01 Serf collects debris. 03892_ Acquired Imp. Medium Armor Plating. 03895_ K-01 Serf collects debris. 03899_ Dropped Aluminum Leg. 03899_ K-01 Serf collects debris. 03906_ Acquired 12 matter. 03908_ Acquired 8 matter. 03909_ K-01 Serf collects debris. 03941_ System corrupted: Heat flow error (+238). 03944_ U-05 Engineer lays Concrete. 03959_ K-01 Serf collects debris. 03965_ System corrupted: Heat flow error (+102). 03966_ K-01 Serf collects debris. 03978_ K-01 Serf cleans the SHOP.Sys. 03982_ Acquired 20 matter. 04034_ The unstable cave ceiling collapses. 04046_ System corrupted: Component data lost. 04046_ The unstable cave ceiling collapses. Map ----- +----------------------------------------------------+ | ?????????????# #???????????????? | | ?????????????## ! ###### #?????###???????? | | ?????????????## %= ##???????????## ???????? | | ?????????###### [%###??????????? ???????? | | ???????######## !% % ###????????????? ????????? | | ??????##### ##?????????????? ????????? | | ?????#### ##????????????"" ????????? | | ######## ## #????????????"" ????????? | | ####### #### #???????????"" ????????? | | ## =%! ##### #?????????? ????????? | | = ###??# #????????? ????????? | | ## % ####??## #????????? #???????? | | ####= #####?????# ##????????# ##???????? | | * ##### #############?????###### ##???????? | | ! #### ######################## #####????? | | #?# # ! ######### ## #######??? | | ### * ######### #### # # ####??? | | ## ## ######### ### ##### | | # ## #??????## ## ## ##### | | # # ??????## % #### | | # # # # ####?##### #### | | # ## ## # ########### | | #?### = % ####### ############ | | ##???# ####### ###????????? | | # #??????# % ###### ##?????????? | | #??????# @ ##?????????? | | #????????# g ###########?????????? | | # #????????# = ###########?????????? | | ###????????# #???????????????????? | | #?????????# ## % ####????????????????? | | ##????????# %# #??### ##????????????????? | | #????????### = ###???# # ##????????????????? | | #??????????# =##??#### ##????????????????? | | != #??????????## %!##??#### #######???????????? | | %|*##??????????## ##????## ########?#######??? | | #%%=##??????????# #????## ### ###########??? | | ##! #??????????## ##???## ## ##### ##??? | | ?# #???????????### ##??## ## ### ##??? | | ##% ##????????????## ##?## ## ### ##??? | | "## % #######???????## #### #### ###?? | | ! #X% ##???????## ####### #### [ ###?? | | ##???????# #### ### ##?? | | ######??# ### ## ##?? | | [ # #### ### ## ###? | | ## *% ## ### ###? | | ## ### % ## #### ### | | %! #?## ##### #### ### | | ]%### #??# ####???## #?### #### | | # %#####??# #######???????# #?#### # ###### | | % # ###### ##?????????????###??###### ###### | +----------------------------------------------------+ Best States ------------- Heat Dissipation 25 Energy Generation 14 Energy Capacity 250 Matter Stores 300 Matter Capacity 300 Sight Range 16 Terrain Scan Density 10 ECM Strength 1 Armor Coverage 225 Evasion (%) 55 Item Schematics ----------------- None Robot Schematics ------------------ None Fabricated ------------ Nothing Alien Tech Used ----------------- None Achievements -------------- None Challenges ------------ None Game ------ Seed NuclearTransdimensionalGun Manual? 0 Play Time 00:41:37 Cumulative 18.1 hours Start 2024.08.17 @ 06:28:01 End 2024.08.17 @ 07:12:38 Sessions 1 Manual Loads 0 Difficulty Rogue Special Mode None Game No. 38 Rogue 38 Adventurer 0 Explorer 0 Win Type - Total 0 Types 0/0/0/0/0/0/0/0/0 Lore% 11 Gallery% 15 Achievement% 13 Wizard Run 0 Options --------- Layout 0 ASCII 0 Keyboard 0 Movement Numpad Keybinds 0 Fullscreen 2 Font 24/Smallcaps Map View 113x50 Zoom Use 0% Tactical HUD 1 Map Filters NONE Filters NONE Steam 1 RUN: dee72eba-2870-4271-b322-78dd4aeb80df